fUST/lending_fUST_20240906
["ID","MTS","AMOUNT","RATE_DAILY","PERIOD"]
[337366300,1725631870660,-500.0,0.0002,2]
[337366301,1725631870670,-500.0,0.0002,2]
[337366302,1725631870679,-500.0,0.0002,2]
[337366303,1725631870689,-1651.41,0.0002,2]
[337366304,1725631870699,-500.0,0.0002,2]
[337366305,1725631870709,-500.0,0.0002,2]
[337366306,1725631870720,-500.0,0.0002,2]
[337366307,1725631870732,-500.0,0.0002,2]
[337366308,1725631870743,-1115.64,0.0002,2]
[337366309,1725631870754,-1610.16,0.0002,2]
[337366310,1725631870764,-500.0,0.0002,2]
[337366311,1725631870773,-555.07,0.0002,2]
[337366312,1725631870783,-288.4970663,0.0002,2]
[337366313,1725631870793,-500.0,0.0002,2]
[337366314,1725631870807,-500.0,0.0002,2]
[337366315,1725631870816,-522.21,0.0002,2]
[337366316,1725631870826,-515.8835283,0.0002,2]
[337366317,1725631870835,-500.0,0.0002,2]
[337366318,1725631870847,-500.0,0.0002,2]
[337366319,1725631870858,-500.0,0.0002,2]
[337366320,1725631870867,-2093.39,0.0002,2]
[337366321,1725631870876,-500.0,0.0002,2]
[337366322,1725631870886,-648.33,0.0002,2]
[337366323,1725631870895,-500.0,0.0002,2]
[337366324,1725631870904,-500.0,0.0002,2]
[337366325,1725631870913,-500.0,0.0002,2]
[337366326,1725631870923,-2191.44,0.0002,2]
[337366327,1725631870932,-500.0,0.0002,2]
[337366328,1725631870943,-500.0,0.0002,2]
[337366329,1725631870953,-500.0,0.0002,2]
[337366330,1725631870963,-500.0,0.0002,2]
[337366331,1725631870972,-486.54007129,0.0002,2]
[337366332,1725631870982,-500.0,0.0002,2]
[337366333,1725631870990,-500.0,0.0002,2]
[337366334,1725631870999,-3029.51,0.0002,2]
[337366335,1725631871008,-500.0,0.0002,2]
[337366336,1725631871018,-500.0,0.0002,2]
[337366337,1725631871027,-614.00713152,0.0002,2]
[337366338,1725631871036,-500.0,0.0002,2]
[337366339,1725631871047,-500.0,0.0002,2]
[337366340,1725631871063,-500.0,0.0002,2]
[337366341,1725631871072,-500.0,0.0002,2]
[337366342,1725631871082,-500.0,0.0002,2]
[337366343,1725631871091,-399.53316071,0.0002,2]
[337366344,1725631871102,-505.62814298,0.0002,2]
[337366345,1725631871112,-500.0,0.0002,2]
[337366346,1725631871121,-500.0,0.0002,2]
[337366347,1725631871130,-500.0,0.0002,2]
[337366348,1725631871139,-500.0,0.0002,2]
[337366349,1725631871149,-500.0,0.0002,2]
[337366350,1725631871158,-500.0,0.0002,2]
[337366351,1725631871167,-1309.28,0.0002,2]
[337366352,1725631871176,-500.0,0.0002,2]
[337366353,1725631871186,-500.0,0.0002,2]
[337366354,1725631871195,-2317.55,0.0002,2]
[337366355,1725631871204,-500.0,0.0002,2]
[337366356,1725631871214,-500.0,0.0002,2]
[337366357,1725631871223,-500.0,0.0002,2]
[337366358,1725631871233,-953.81,0.0002,2]
[337366359,1725631871243,-500.0,0.0002,2]
[337366360,1725631871253,-500.0,0.0002,2]
[337366361,1725631871262,-503.92249356,0.0002,2]
[337366362,1725631871271,-500.0,0.0002,2]
[337366363,1725631871281,-2214.38,0.0002,2]
[337366364,1725631871291,-200.0,0.0002,2]
[337366365,1725631871300,-500.0,0.0002,2]
[337366366,1725631871312,-500.0,0.0002,2]
[337366367,1725631871322,-500.0,0.0002,2]
[337366368,1725631871331,-2383.39,0.0002,2]
[337366369,1725631871341,-500.0,0.0002,2]
[337366370,1725631871350,-500.0,0.0002,2]
[337366371,1725631871359,-1150.25,0.0002,2]
[337366372,1725631871369,-500.0,0.0002,2]
[337366373,1725631871378,-1383.67,0.0002,2]
[337366374,1725631871387,-574.52,0.0002,2]
[337366375,1725631871397,-500.0,0.0002,2]
[337366376,1725631871406,-500.0,0.0002,2]
[337366377,1725631871415,-1183.94,0.0002,2]
[337366378,1725631871424,-1055.24,0.0002,2]
[337366379,1725631871436,-500.0,0.0002,2]
[337366380,1725631871446,-953.31,0.0002,2]
[337366381,1725631871457,-500.0,0.0002,2]
[337366382,1725631871467,-500.0,0.0002,2]
[337366383,1725631871475,-500.0,0.0002,2]
[337366384,1725631871485,-500.0,0.0002,2]
[337366385,1725631871494,-1004.18,0.0002,2]
[337366386,1725631871504,-500.0,0.0002,2]
[337366387,1725631871514,-526.92186355,0.0002,2]
[337366388,1725631871525,-500.0,0.0002,2]
[337366389,1725631871534,-500.0,0.0002,2]
[337366390,1725631871543,-500.0,0.0002,2]
[337366391,1725631871557,-500.0,0.0002,2]
[337366392,1725631871566,-500.0,0.0002,2]
[337366393,1725631871576,-500.0,0.0002,2]
[337366394,1725631871586,-500.0,0.0002,2]
[337366395,1725631871595,-609.29,0.0002,2]
[337366396,1725631871605,-1073.16,0.0002,2]
[337366397,1725631871614,-500.0,0.0002,2]
[337366398,1725631871624,-500.0,0.0002,2]
[337366399,1725631871633,-500.0,0.0002,2]
[337366400,1725631871642,-500.0,0.0002,2]
[337366401,1725631871651,-500.0,0.0002,2]
[337366402,1725631871660,-500.0,0.0002,2]
[337366403,1725631871670,-500.0,0.0002,2]
[337366404,1725631871679,-984.52,0.0002,2]
[337366405,1725631871688,-500.0,0.0002,2]
[337366406,1725631871697,-500.0,0.0002,2]
[337366407,1725631871706,-500.0,0.0002,2]
[337366408,1725631871715,-802.18,0.0002,2]
[337366409,1725631871725,-500.0,0.0002,2]
[337366410,1725631871735,-502.79,0.0002,2]
[337366411,1725631871744,-500.0,0.0002,2]
[337366412,1725631871754,-500.0,0.0002,2]
[337366413,1725631871764,-672.02,0.0002,2]
[337366414,1725631871773,-1736.67,0.0002,2]
[337366415,1725631871782,-500.0,0.0002,2]
[337366416,1725631871791,-2241.58,0.0002,2]
[337366417,1725631871801,-500.0,0.0002,2]
[337366418,1725631871824,-500.0,0.0002,2]
[337366419,1725631871837,-500.0,0.0002,2]
[337366420,1725631871847,-500.0,0.0002,2]
[337366421,1725631871857,-500.0,0.0002,2]
[337366422,1725631871867,-709.85,0.0002,2]
[337366423,1725631871876,-929.24,0.0002,2]
[337366424,1725631871885,-500.0,0.0002,2]
[337366425,1725631871895,-789.68,0.0002,2]
[337366426,1725631871904,-564.3,0.0002,2]
[337366427,1725631871913,-500.0,0.0002,2]
[337366428,1725631871922,-500.0,0.0002,2]
[337366429,1725631871931,-2150.56,0.0002,2]
[337366430,1725631871941,-500.0,0.0002,2]
[337366431,1725631871950,-500.0,0.0002,2]
[337366432,1725631871959,-500.0,0.0002,2]
[337366433,1725631871968,-774.77,0.0002,2]
[337366434,1725631871978,-500.0,0.0002,2]
[337366435,1725631871987,-500.0,0.0002,2]
[337366436,1725631871997,-500.0,0.0002,2]
[337366437,1725631872006,-500.0,0.0002,2]
[337366438,1725631872015,-1717.67,0.0002,2]
[337366439,1725631872025,-537.94,0.0002,2]
[337366440,1725631872034,-500.0,0.0002,2]
[337366441,1725631872043,-500.0,0.0002,2]
[337366442,1725631872058,-500.0,0.0002,2]
[337366443,1725631872067,-500.0,0.0002,2]
[337366444,1725631872077,-501.02,0.0002,2]
[337366445,1725631872086,-500.0,0.0002,2]
[337366446,1725631872095,-500.0,0.0002,2]
[337366447,1725631872105,-507.27544196,0.0002,2]
[337366448,1725631872114,-500.0,0.0002,2]
[337366449,1725631872123,-522.16317989,0.0002,2]
[337366450,1725631872132,-504.27559843,0.0002,2]
[337366451,1725631872141,-500.0,0.0002,2]
[337366452,1725631872150,-500.0,0.0002,2]
[337366453,1725631872159,-500.0,0.0002,2]
[337366454,1725631872169,-1438.2,0.0002,2]
[337366455,1725631872179,-500.0,0.0002,2]
[337366456,1725631872188,-500.0,0.0002,2]
[337366457,1725631872197,-500.0,0.0002,2]
[337366458,1725631872207,-500.0,0.0002,2]
[337366459,1725631872216,-500.0,0.0002,2]
[337366460,1725631872225,-564.71,0.0002,2]
[337366461,1725631872235,-500.0,0.0002,2]
[337366462,1725631872244,-500.0,0.0002,2]
[337366463,1725631872253,-1150.94,0.0002,2]
[337366464,1725631872263,-500.0,0.0002,2]
[337366465,1725631872272,-500.0,0.0002,2]
[337366466,1725631872281,-500.0,0.0002,2]
[337366467,1725631872291,-500.0,0.0002,2]
[337366468,1725631872299,-500.0,0.0002,2]
[337366469,1725631872312,-500.0,0.0002,2]
[337366470,1725631872321,-500.0,0.0002,2]
[337366471,1725631872330,-500.0,0.0002,2]
[337366472,1725631872339,-1637.9,0.0002,2]
[337366473,1725631872348,-3128.92,0.0002,2]
[337366474,1725631872357,-500.0,0.0002,2]
[337366475,1725631872366,-645.59,0.0002,2]
[337366476,1725631872376,-500.0,0.0002,2]
[337366477,1725631872385,-500.0,0.0002,2]
[337366478,1725631872396,-500.0,0.0002,2]
[337366479,1725631872405,-500.0,0.0002,2]
[337366480,1725631872414,-549.21,0.0002,2]
[337366481,1725631872423,-500.0,0.0002,2]
[337366482,1725631872435,-1354.63,0.0002,2]
[337366483,1725631872446,-500.0,0.0002,2]
[337366484,1725631872457,-588.01,0.0002,2]
[337366485,1725631872466,-500.0,0.0002,2]
[337366486,1725631872475,-500.0,0.0002,2]
[337366487,1725631872484,-500.0,0.0002,2]
[337366488,1725631872493,-500.0,0.0002,2]
[337366489,1725631872502,-500.0,0.0002,2]
[337366490,1725631872512,-601.51489211,0.0002,2]
[337366491,1725631872522,-500.0,0.0002,2]
[337366492,1725631872534,-500.0,0.0002,2]
[337366493,1725631872544,-696.17,0.0002,2]
[337366494,1725631872557,-500.0,0.0002,2]
[337366495,1725631872567,-500.0,0.0002,2]
[337366496,1725631872577,-500.0,0.0002,2]
[337366497,1725631872713,-2435.34,0.0002,2]
[337366498,1725631872726,-500.0,0.0002,2]
[337366499,1725631872735,-739.29,0.0002,2]
[337366500,1725631872744,-500.0,0.0002,2]
[337366501,1725631872754,-500.0,0.0002,2]
[337366502,1725631872763,-712.06,0.0002,2]
[337366503,1725631872772,-500.0,0.0002,2]
[337366504,1725631872782,-500.0,0.0002,2]
[337366505,1725631872791,-1437.93,0.0002,2]
[337366506,1725631872803,-500.0,0.0002,2]
[337366507,1725631872814,-517.79194516,0.0002,2]
[337366508,1725631872824,-500.0,0.0002,2]
[337366509,1725631872833,-1254.48,0.0002,2]
[337366510,1725631872842,-500.0,0.0002,2]
[337366511,1725631872851,-500.0,0.0002,2]
[337366512,1725631872860,-500.0,0.0002,2]
[337366513,1725631872869,-500.0,0.0002,2]
[337366514,1725631872879,-547.87,0.0002,2]
[337366515,1725631872888,-500.0,0.0002,2]
[337366516,1725631872898,-500.0,0.0002,2]
[337366517,1725631872908,-1992.59,0.0002,2]
[337366518,1725631872918,-579.46,0.0002,2]
[337366519,1725631872927,-2436.65,0.0002,2]
[337366520,1725631872937,-500.0,0.0002,2]
[337366521,1725631872948,-500.0,0.0002,2]
[337366522,1725631872960,-636.27062539,0.0002,2]
[337366523,1725631872970,-854.61,0.0002,2]
[337366524,1725631872979,-500.0,0.0002,2]
[337366525,1725631872988,-1053.85,0.0002,2]
[337366526,1725631872998,-500.0,0.0002,2]
[337366527,1725631873008,-500.0,0.0002,2]
[337366528,1725631873018,-619.13,0.0002,2]
[337366529,1725631873028,-500.0,0.0002,2]
[337366530,1725631873038,-500.0,0.0002,2]
[337366531,1725631873047,-2391.77,0.0002,2]
[337366532,1725631873062,-1773.27,0.0002,2]
[337366533,1725631873072,-416.10571761,0.0002,2]
[337366534,1725631873082,-500.0,0.0002,2]
[337366535,1725631873092,-1617.1,0.0002,2]
[337366536,1725631873102,-985.06,0.0002,2]
[337366537,1725631873111,-407.01833118,0.0002,2]
[337366538,1725631873121,-1012.85,0.0002,2]
[337366539,1725631873130,-500.0,0.0002,2]
[337366540,1725631873140,-1083.74,0.0002,2]
[337366541,1725631873150,-500.0,0.0002,2]
[337366542,1725631873159,-500.0,0.0002,2]
[337366543,1725631873168,-500.0,0.0002,2]
[337366544,1725631873178,-514.19831076,0.0002,2]
[337366545,1725631873188,-993.62,0.0002,2]
[337366546,1725631873198,-500.0,0.0002,2]
[337366547,1725631873207,-500.0,0.0002,2]
[337366548,1725631873217,-500.0,0.0002,2]
[337366549,1725631873227,-979.52,0.0002,2]
[337366550,1725631873236,-1448.57,0.0002,2]
[337366551,1725631873246,-500.0,0.0002,2]
[337366552,1725631873255,-500.0,0.0002,2]
[337366553,1725631873265,-500.0,0.0002,2]
[337366554,1725631873275,-3583.08,0.0002,2]
[337366555,1725631873285,-2065.07,0.0002,2]
[337366556,1725631873295,-500.0,0.0002,2]
[337366557,1725631873310,-500.0,0.0002,2]
[337366558,1725631873319,-500.0,0.0002,2]
[337366559,1725631873329,-765.11,0.0002,2]
[337366560,1725631873339,-500.0,0.0002,2]
[337366561,1725631873349,-500.0,0.0002,2]
[337366562,1725631873359,-500.0,0.0002,2]
[337366563,1725631873368,-500.0,0.0002,2]
[337366564,1725631873377,-2187.02,0.0002,2]
[337366565,1725631873387,-548.62,0.0002,2]
[337366566,1725631873397,-500.0,0.0002,2]
[337366567,1725631873407,-600.2,0.0002,2]
[337366568,1725631873417,-915.11,0.0002,2]
[337366569,1725631873427,-526.84,0.0002,2]
[337366570,1725631873436,-583.77,0.0002,2]
[337366571,1725631873446,-500.0,0.0002,2]
[337366572,1725631873456,-500.0,0.0002,2]
[337366573,1725631873465,-500.0,0.0002,2]
[337366574,1725631873475,-2820.38,0.0002,2]
[337366575,1725631873485,-3216.65,0.0002,2]
[337366576,1725631873494,-500.0,0.0002,2]
[337366577,1725631873504,-3068.16,0.0002,2]
[337366578,1725631873513,-500.0,0.0002,2]
[337366579,1725631873524,-519.39925971,0.0002,2]
[337366580,1725631873539,-500.0,0.0002,2]
[337366581,1725631873549,-500.0,0.0002,2]
[337366582,1725631873564,-500.0,0.0002,2]
[337366583,1725631873574,-500.0,0.0002,2]
[337366584,1725631873583,-500.0,0.0002,2]
[337366585,1725631873593,-500.0,0.0002,2]
[337366586,1725631873602,-2164.36,0.0002,2]
[337366587,1725631873613,-500.0,0.0002,2]
[337366588,1725631873623,-585.28,0.0002,2]
[337366589,1725631873632,-500.0,0.0002,2]
[337366590,1725631873642,-500.0,0.0002,2]
[337366591,1725631873651,-2677.65,0.0002,2]
[337366592,1725631873660,-500.0,0.0002,2]
[337366593,1725631873669,-2209.05,0.0002,2]
[337366594,1725631873679,-500.38,0.0002,2]
[337366595,1725631873688,-500.0,0.0002,2]
[337366596,1725631873697,-2074.26,0.0002,2]
[337366597,1725631873707,-500.0,0.0002,2]
[337366598,1725631873717,-500.0,0.0002,2]
[337366599,1725631873728,-500.0,0.0002,2]
[337366600,1725631873737,-3954.89,0.0002,2]
[337366601,1725631873747,-500.0,0.0002,2]
[337366602,1725631873757,-613.26944936,0.0002,2]
[337366603,1725631873766,-500.0,0.0002,2]
[337366604,1725631873776,-1651.0,0.0002,2]
[337366605,1725631873786,-116314.01,0.0002,2]
[337366606,1725631873795,-500.0,0.0002,2]
[337366607,1725631873807,-500.0,0.0002,2]
[337366608,1725631873817,-500.0,0.0002,2]
[337366609,1725631873825,-350.19126557,0.0002,2]
[337366610,1725631873834,-9306.23,0.0002,2]
[337366611,1725631873843,-500.0,0.0002,2]
[337366612,1725631873852,-1523.95,0.0002,2]
[337366613,1725631873861,-500.0,0.0002,2]
[337366614,1725631873870,-1087.16,0.0002,2]
[337366615,1725631873879,-500.0,0.0002,2]
[337366616,1725631873888,-541.23,0.0002,2]
[337366617,1725631873897,-3472.66,0.0002,2]
[337366618,1725631873906,-500.0,0.0002,2]
[337366619,1725631873916,-500.0,0.0002,2]
[337366620,1725631873926,-500.0,0.0002,2]
[337366621,1725631873935,-500.0,0.0002,2]
[337366622,1725631873945,-500.0,0.0002,2]
[337366623,1725631873956,-1236.52,0.0002,2]
[337366624,1725631873966,-1611.2,0.0002,2]
[337366625,1725631873976,-500.0,0.0002,2]
[337366626,1725631873986,-500.0,0.0002,2]
[337366627,1725631873996,-2055.17,0.0002,2]
[337366628,1725631874006,-500.0,0.0002,2]
[337366629,1725631874016,-1839.42,0.0002,2]
[337366630,1725631874026,-500.0,0.0002,2]
[337366631,1725631874035,-500.0,0.0002,2]
[337366632,1725631874046,-500.0,0.0002,2]
[337366633,1725631874061,-500.0,0.0002,2]
[337366634,1725631874070,-500.0,0.0002,2]
[337366635,1725631874079,-500.0,0.0002,2]
[337366636,1725631874089,-622.12,0.0002,2]
[337366637,1725631874098,-2171.42,0.0002,2]
[337366638,1725631874109,-745.9,0.0002,2]
[337366639,1725631874118,-500.0,0.0002,2]
[337366640,1725631874128,-1274.22,0.0002,2]
[337366641,1725631874139,-500.0,0.0002,2]
[337366642,1725631874149,-611.22,0.0002,2]
[337366643,1725631874158,-1057.51,0.0002,2]
[337366644,1725631874169,-845.53,0.0002,2]
[337366645,1725631874178,-500.0,0.0002,2]
[337366646,1725631874187,-500.0,0.0002,2]
[337366647,1725631874196,-3522.6,0.0002,2]
[337366648,1725631874205,-530.81,0.0002,2]
[337366649,1725631874216,-500.0,0.0002,2]
[337366650,1725631874226,-500.0,0.0002,2]
[337366651,1725631874236,-3286.15,0.0002,2]
[337366652,1725631874247,-2863.53,0.0002,2]
[337366653,1725631874260,-500.0,0.0002,2]
[337366654,1725631874268,-651.92,0.0002,2]
[337366655,1725631874277,-2848.96,0.0002,2]
[337366656,1725631874286,-500.0,0.0002,2]
[337366657,1725631874295,-2433.94,0.0002,2]
[337366658,1725631874311,-500.0,0.0002,2]
[337366659,1725631874320,-2928.81,0.0002,2]
[337366660,1725631874329,-500.0,0.0002,2]
[337366661,1725631874338,-654.7,0.0002,2]
[337366662,1725631874347,-2387.03,0.0002,2]
[337366663,1725631874356,-500.0,0.0002,2]
[337366664,1725631874364,-1660.58,0.0002,2]
[337366665,1725631874374,-500.0,0.0002,2]
[337366666,1725631874383,-3345.77,0.0002,2]
[337366667,1725631874392,-500.0,0.0002,2]
[337366668,1725631874401,-500.0,0.0002,2]
[337366669,1725631874409,-3264.33,0.0002,2]
[337366670,1725631874419,-500.0,0.0002,2]
[337366671,1725631874430,-500.0,0.0002,2]
[337366672,1725631874440,-500.0,0.0002,2]
[337366673,1725631874450,-1608.24,0.0002,2]
[337366674,1725631874462,-500.0,0.0002,2]
[337366675,1725631874471,-1081.18,0.0002,2]
[337366676,1725631874480,-587.81,0.0002,2]
[337366677,1725631874490,-1370.51,0.0002,2]
[337366678,1725631874499,-656.69,0.0002,2]
[337366679,1725631874509,-500.0,0.0002,2]
[337366680,1725631874522,-1055.34,0.0002,2]
[337366681,1725631874532,-500.0,0.0002,2]
[337366682,1725631874543,-1952.4,0.0002,2]
[337366683,1725631874557,-3518.29,0.0002,2]
[337366684,1725631874566,-500.0,0.0002,2]
[337366685,1725631874576,-2418.27,0.0002,2]
[337366686,1725631874585,-500.0,0.0002,2]
[337366687,1725631874595,-6016.44,0.0002,2]
[337366688,1725631874607,-500.0,0.0002,2]
[337366689,1725631874616,-500.0,0.0002,2]
[337366690,1725631874625,-500.0,0.0002,2]
[337366691,1725631874634,-1000.0,0.0002,2]
[337366692,1725631874643,-500.0,0.0002,2]
[337366693,1725631874652,-500.0,0.0002,2]
[337366694,1725631874661,-837.34,0.0002,2]
[337366695,1725631874669,-500.0,0.0002,2]
[337366696,1725631874679,-862.38,0.0002,2]
[337366697,1725631874688,-500.0,0.0002,2]
[337366698,1725631874697,-1887.14,0.0002,2]
[337366699,1725631874706,-500.0,0.0002,2]
[337366700,1725631874715,-2273.13,0.0002,2]
[337366701,1725631874726,-1963.85,0.0002,2]
[337366702,1725631874736,-500.0,0.0002,2]
[337366703,1725631874746,-3757.23,0.0002,2]
[337366704,1725631874756,-500.0,0.0002,2]
[337366705,1725631874767,-500.0,0.0002,2]
[337366706,1725631874776,-500.0,0.0002,2]
[337366707,1725631874786,-500.0,0.0002,2]
[337366708,1725631874795,-500.0,0.0002,2]
[337366709,1725631874932,-500.0,0.0002,2]
[337366710,1725631874943,-500.0,0.0002,2]
[337366711,1725631874956,-1009.77,0.0002,2]
[337366712,1725631874966,-1475.95,0.0002,2]
[337366713,1725631874975,-669.11,0.0002,2]
[337366714,1725631874984,-500.0,0.0002,2]
[337366715,1725631874994,-3550.63,0.0002,2]
[337366716,1725631875004,-1203.77,0.0002,2]
[337366717,1725631875013,-500.0,0.0002,2]
[337366718,1725631875024,-1123.46,0.0002,2]
[337366719,1725631875035,-1848.36,0.0002,2]
[337366720,1725631875045,-3384.88,0.0002,2]
[337366721,1725631875059,-500.0,0.0002,2]
[337366722,1725631875068,-710.64,0.0002,2]
[337366723,1725631875077,-1535.68,0.0002,2]
[337366724,1725631875085,-1036.44,0.0002,2]
[337366725,1725631875095,-603.27,0.0002,2]
[337366726,1725631875103,-500.0,0.0002,2]
[337366727,1725631875113,-500.0,0.0002,2]
[337366728,1725631875123,-3839.93,0.0002,2]
[337366729,1725631875132,-500.0,0.0002,2]
[337366730,1725631875141,-1002.653271,0.0002,2]
[337366731,1725631875151,-3368.52,0.0002,2]
[337366732,1725631875162,-500.0,0.0002,2]
[337366733,1725631875171,-547.17,0.0002,2]
[337366734,1725631875180,-1934.78,0.0002,2]
[337366735,1725631875189,-500.0,0.0002,2]
[337366736,1725631875199,-500.0,0.0002,2]
[337366737,1725631875209,-500.0,0.0002,2]
[337366738,1725631875220,-500.0,0.0002,2]
[337366739,1725631875230,-1894.75,0.0002,2]
[337366740,1725631875239,-912.1,0.0002,2]
[337366741,1725631875248,-500.0,0.0002,2]
[337366742,1725631875258,-716.25,0.0002,2]
[337366743,1725631875267,-500.0,0.0002,2]
[337366744,1725631875277,-500.0,0.0002,2]
[337366745,1725631875286,-3216.8,0.0002,2]
[337366746,1725631875295,-500.0,0.0002,2]
[337366747,1725631875307,-1447.97,0.0002,2]
[337366748,1725631875317,-1236.59,0.0002,2]
[337366749,1725631875326,-3894.99,0.0002,2]
[337366750,1725631875335,-833.5,0.0002,2]
[337366751,1725631875344,-500.0,0.0002,2]
[337366752,1725631875353,-500.0,0.0002,2]
[337366753,1725631875362,-1879.17,0.0002,2]
[337366754,1725631875372,-1187.25,0.0002,2]
[337366755,1725631875382,-500.0,0.0002,2]
[337366756,1725631875391,-510.23,0.0002,2]
[337366757,1725631875401,-725.44,0.0002,2]
[337366758,1725631875410,-2343.94,0.0002,2]
[337366759,1725631875419,-817.13,0.0002,2]
[337366760,1725631875430,-2268.84,0.0002,2]
[337366761,1725631875439,-1000.0,0.00020021,2]
[337366762,1725631875450,-866.66663191,0.00020021,2]
[337366763,1725631875461,-1000.0,0.00020021,2]
[337366764,1725631875471,-241.1964392,0.00020041,2]
[337366765,1725631875480,-153.0,0.00020041,2]
[337366766,1725631875490,-153.0,0.00020041,2]
[337366767,1725631875499,-153.0,0.00020041,2]
[337366768,1725631875508,-153.0,0.00020041,2]
[337366769,1725631875518,-153.0,0.00020041,2]
[337366770,1725631875531,-153.0,0.00020041,2]
[337366771,1725631875543,-306.0,0.00020041,2]
[337366772,1725631875560,-975.88,0.00020273,2]
[337366773,1725631875569,-452.43290024,0.00020273,2]
[337366774,1725631875578,-500.30328367,0.00020273,2]
[337366775,1725631875587,-500.0,0.00020273,2]
[337366776,1725631875597,-502.29,0.00020273,2]
[337366777,1725631875608,-500.0,0.00020273,2]
[337366778,1725631875618,-500.0,0.00020273,2]
[337366779,1725631875628,-500.0,0.00020273,2]
[337366780,1725631875637,-500.0,0.00020273,2]
[337366781,1725631875647,-304.03900997,0.00020273,2]
[337366782,1725631875656,-500.0,0.00020273,2]
[337366783,1725631875665,-227.73843621,0.00020273,2]
[337366784,1725631875674,-500.0,0.00020273,2]
[337366785,1725631875683,-500.0,0.00020273,2]
[337366786,1725631875693,-500.0,0.00020273,2]
[337366787,1725631875702,-500.0,0.00020273,2]
[337366788,1725631875711,-500.0,0.00020273,2]
[337366789,1725631875720,-500.0,0.00020273,2]
[337366790,1725631875730,-500.0,0.00020273,2]
[337366791,1725631875740,-500.0,0.00020273,2]
[337366792,1725631875749,-500.0,0.00020273,2]
[337366793,1725631875759,-532.12,0.00020273,2]
[337366794,1725631875768,-501.56,0.00020273,2]
[337366795,1725631875778,-500.0,0.00020273,2]
[337366796,1725631875787,-345.3224545,0.00020273,2]
[337366797,1725631875796,-500.0,0.00020273,2]
[337366798,1725631875808,-667.2,0.00020273,2]
[337366799,1725631875817,-500.0,0.00020273,2]